bitfinex/quotes_ETHUSD_20250626
["timestamp","ask_amount","ask_price","bid_price","bid_amount"]
[1750907706004,0.12483871,2502.4,2502.0,3.99680255]
[1750907706202,0.12483871,2502.4,2501.9,0.91152571]
[1750907706203,0.12483871,2502.7,2502.3,4.19550994]
[1750907706403,0.49910292,2502.8,2502.5,3.99586183]
[1750907706609,0.1992,2502.8,2502.4,3.99615408]
[1750907706809,0.1992,2502.8,2502.5,3.99600399]
[1750907707009,0.155,2503.1,2502.6,3.99581559]
[1750907707213,0.1992,2503.0,2502.6,3.99581559]
[1750907707537,0.1992,2503.0,2502.7,4.93238466]
[1750907707836,0.1992,2503.2,2503.0,3.99506176]
[1750907708224,10.55032104,2504.2,2503.0,3.99506176]
[1750907708225,0.155,2504.0,2503.2,0.8921]
[1750907708400,0.3542,2504.0,2503.2,0.8921]
[1750907708605,0.155,2504.0,2503.2,4.88696801]
[1750907708806,0.1992,2503.7,2503.2,4.19406801]
[1750907709114,0.1992,2503.7,2503.2,0.1992]
[1750907709324,0.1992,2503.7,2503.4,3.99455714]
[1750907709648,0.1992,2503.7,2503.4,3.99441892]
[1750907709867,0.1992,2503.7,2503.2,0.1992]
[1750907710014,0.1992,2503.7,2503.5,3.99439751]
[1750907710213,0.1992,2503.7,2503.4,3.99451361]
[1750907710641,0.1992,2503.7,2503.6,3.99424828]
[1750907710939,0.1992,2503.9,2503.4,0.1992]
[1750907711541,0.55,2503.9,2502.9,0.9413]
[1750907711838,0.1992,2503.5,2503.0,7.7512]
[1750907712018,0.1992,2503.5,2503.0,11.74629687]
[1750907712218,0.1992,2503.5,2503.1,3.99504614]
[1750907712439,0.155,2504.0,2503.0,7.552]
[1750907712619,0.1992,2503.9,2503.4,0.1992]
[1750907712822,0.1992,2503.9,2503.4,4.19372629]
[1750907713023,0.1992,2503.9,2503.5,3.99440336]
[1750907713220,0.155,2504.3,2503.5,0.936]
[1750907713427,0.1992,2504.1,2503.6,4.19328994]
[1750907713646,0.1992,2504.1,2503.8,3.99390624]
[1750907713965,0.1992,2504.1,2503.6,0.1992]
[1750907714165,0.1992,2504.1,2503.6,4.19344437]
[1750907714350,0.1992,2504.1,2503.6,11.73944437]
[1750907714664,0.1992,2504.1,2503.6,7.7452]
[1750907714963,0.1992,2504.1,2503.8,3.99380529]
[1750907715167,0.1992,2504.1,2503.7,3.99404021]
[1750907715371,0.1992,2504.1,2502.8,3.99544624]
[1750907715372,0.705,2504.0,2502.0,10.0]
[1750907715573,0.705,2504.0,2501.2,0.1992]
[1750907715574,0.55,2502.0,2501.2,0.1992]
[1750907715770,0.1992,2501.7,2501.2,0.1992]
[1750907715940,10.0,2501.8,2501.0,0.1992]
[1750907716264,2.329,2502.1,2501.0,3.9983748]
[1750907716480,0.1992,2502.0,2501.6,0.1992]
[1750907716641,3.99663582,2502.2,2501.2,7.54]
[1750907716840,3.99663582,2502.2,2501.0,3.99836425]
[1750907716841,0.1992,2501.8,2501.4,0.1992]
[1750907717163,0.1992,2501.6,2501.2,0.1992]
[1750907718074,0.1992,2501.6,2501.3,0.33373949]
[1750907719840,0.30458812,2502.4,2501.3,0.951]
[1750907720045,9.585,2502.5,2501.3,0.951]
[1750907720240,10.9585,2502.4,2501.3,0.951]
[1750907720448,0.9585,2502.4,2501.7,3.99726754]
[1750907720642,0.9585,2502.4,2501.3,0.951]
[1750907720959,0.9585,2502.4,2501.0,10.0]
[1750907720960,10.55,2502.1,2501.0,7.536]
[1750907721138,12.879,2502.1,2501.0,7.536]
[1750907721343,1.68754956,2502.0,2501.0,7.536]
[1750907721543,1.68754956,2502.0,2501.1,3.99811848]
[1750907722152,1.68754956,2502.0,2501.2,3.99806702]
[1750907722358,1.68754956,2502.0,2501.1,3.99824077]
[1750907722553,1.68754956,2502.0,2501.2,3.99797498]
[1750907722889,1.45665496,2501.9,2501.2,3.99797498]
[1750907723288,1.45665496,2501.9,2501.3,3.99790975]
[1750907723669,1.45665496,2501.9,2500.9,7.534]
[1750907723850,1.45665496,2501.9,2501.1,3.9981324]
[1750907724050,1.45665496,2501.9,2501.2,3.99802902]
[1750907724262,1.45665496,2501.9,2501.1,3.9981324]
[1750907724464,1.45665496,2501.9,2501.2,3.99808092]
[1750907724762,1.45665496,2501.9,2501.4,3.99775156]
[1750907725382,1.45665496,2501.9,2501.3,3.99786652]
[1750907725686,1.45665496,2501.9,2501.2,3.99808092]
[1750907725687,1.45665496,2501.9,2501.4,3.9977395]
[1750907726055,1.45665496,2501.9,2501.5,3.99748124]
[1750907726252,2.33,2502.1,2501.6,3.99740803]
[1750907727087,2.33,2502.1,2501.5,3.99754645]
[1750907727380,0.12485825,2502.0,2501.5,3.99754645]
[1750907727581,0.12485965,2502.0,2501.7,3.99725486]
[1750907727780,0.12485598,2502.3,2501.7,3.99714699]
[1750907727980,3.55211087,2502.3,2501.8,3.9970206]
[1750907728183,3.42725489,2502.3,2501.8,3.9970206]
[1750907728507,3.42725489,2502.3,2501.9,3.99693574]
[1750907728707,1.09725489,2502.3,2502.0,3.99678197]
[1750907728897,2.33,2502.5,2502.0,3.99678197]
[1750907729099,2.33,2502.5,2502.1,3.99664282]
[1750907729270,2.33,2502.5,2502.2,3.99641273]
[1750907729476,2.33,2502.5,2501.8,0.9622]
[1750907729675,0.29695819,2502.8,2502.3,3.99617183]
[1750907729875,0.1992,2502.6,2502.2,0.1992]
[1750907730101,0.1992,2502.6,2502.5,3.99600399]
[1750907731068,0.12481782,2502.9,2502.5,3.99600399]
[1750907731297,0.1992,2502.8,2502.6,3.99572976]
[1750907731607,0.1992,2502.8,2502.7,3.99568466]
[1750907732509,0.1992,2503.2,2503.0,3.9951893]
[1750907732710,10.0,2503.1,2501.8,0.9199]
[1750907732896,13.99542464,2502.9,2501.8,3.99699655]
[1750907733080,0.55,2502.6,2501.2,3.99808092]
[1750907733278,0.12479997,2502.5,2501.5,3.99756717]
[1750907733584,0.12479997,2502.4,2501.8,3.99698334]
[1750907733785,0.12479997,2502.3,2501.2,10.0]
[1750907734109,0.84474097,2502.6,2501.7,3.99713343]
[1750907734612,0.12484065,2502.5,2501.8,3.99710158]
[1750907734816,0.12484065,2502.4,2501.8,3.99710158]
[1750907734992,0.12484065,2502.3,2501.7,3.99721953]
[1750907735196,0.12484065,2502.2,2501.7,3.99721953]
[1750907735380,0.12484065,2502.4,2501.7,3.99721953]
[1750907735579,0.12484065,2502.3,2501.7,3.99721836]
[1750907735777,0.12484065,2502.2,2501.7,3.99721836]
[1750907736000,0.12484065,2502.3,2501.8,3.99710531]
[1750907736173,0.12484065,2502.2,2501.8,3.99710531]
[1750907736378,0.12484065,2502.3,2501.8,3.99710531]
[1750907736578,0.12484065,2502.2,2501.8,3.99710531]
[1750907736977,0.12484065,2502.2,2501.7,3.99722086]
[1750907737213,0.12484065,2502.2,2501.3,7.517]
[1750907737378,10.0,2502.5,2501.9,3.99694716]
[1750907737710,0.12483155,2502.4,2501.9,3.99694716]
[1750907737923,0.12483155,2502.3,2502.0,3.99679189]
[1750907738094,0.12483155,2502.5,2502.0,3.99679189]
[1750907738405,0.12483155,2502.4,2502.1,3.99648919]
[1750907738605,0.30167195,2502.6,2502.1,3.99648919]
[1750907738905,0.12483155,2502.5,2501.7,4.96979354]
[1750907739206,12.3,2502.9,2501.8,0.49697935]
[1750907739405,0.67483307,2502.8,2501.9,3.99691396]
[1750907739609,0.12483307,2502.7,2501.9,3.99691396]
[1750907739810,0.12483307,2502.6,2501.9,3.99691396]
[1750907740110,0.12483307,2502.5,2501.9,3.99691396]
[1750907740281,0.12483307,2502.4,2501.9,3.99695949]
[1750907740475,0.12483307,2502.3,2501.8,3.99708202]
[1750907740697,0.12483307,2502.2,2501.8,3.99706913]
[1750907740902,5.78969063,2502.8,2501.8,3.99706913]
[1750907741212,0.55,2502.6,2501.8,3.99706913]
[1750907741505,0.12483792,2502.5,2501.8,3.99709886]
[1750907741711,0.12483792,2502.4,2501.8,3.99709886]
[1750907741885,0.12483792,2502.3,2501.4,3.99766595]
[1750907742084,0.12483792,2502.2,2501.0,10.0]
[1750907742289,0.12483792,2502.1,2501.8,3.99710252]
[1750907742483,2.3,2502.5,2501.8,3.99710252]
[1750907742676,0.1992,2502.2,2501.9,3.99694698]
[1750907742887,0.12484335,2502.1,2501.9,3.99694698]
[1750907743073,0.1992,2502.2,2501.9,3.99694698]
[1750907743279,0.12484182,2502.1,2502.0,3.99680255]
[1750907743718,0.12484182,2502.1,2501.7,0.1992]
[1750907743719,0.12484182,2502.1,2501.9,3.99692801]
[1750907743927,0.12484186,2502.0,2501.9,3.99692801]
[1750907744110,0.1992,2502.2,2501.9,3.99692801]
[1750907744288,0.12483621,2502.1,2501.9,3.99692801]
[1750907744492,0.1992,2502.2,2502.0,3.99680255]
[1750907744719,0.12483338,2502.1,2502.0,3.99680255]
[1750907746020,0.12483338,2502.1,2502.0,4.19600255]
[1750907747434,0.12483338,2502.1,2501.8,3.99709335]
[1750907747621,10.0,2502.6,2501.9,3.9969623]
[1750907747622,0.12483338,2502.0,2501.9,3.9969623]
[1750907749015,0.1992,2502.5,2502.1,3.9965103]
[1750907749315,0.12482682,2502.4,2502.1,3.9965103]
[1750907749516,0.12482682,2502.3,2502.1,3.9965103]
[1750907749814,0.12482682,2502.2,2502.0,3.99674846]
[1750907750019,0.12482682,2502.1,2502.0,3.99674846]
[1750907751023,0.1992,2502.5,2502.2,3.9964061]
[1750907751234,0.12482212,2502.4,2502.1,3.99657783]
[1750907751433,0.12482212,2502.3,2502.2,3.99648309]
[1750907751623,0.12482212,2502.3,2502.2,4.19568309]
[1750907753331,0.95485763,2502.9,2502.3,3.99628261]
[1750907753531,0.1992,2502.9,2502.5,3.99592852]
[1750907753905,0.1992,2502.9,2502.5,3.99586723]
[1750907754107,1.15405763,2502.9,2502.5,3.99586723]
[1750907754319,2.49946339,2502.9,2502.5,3.99586723]
[1750907754517,0.1992,2502.9,2502.5,3.99586723]
[1750907754913,0.1992,2502.9,2502.5,3.99596494]
[1750907757442,0.1992,2502.9,2502.4,0.1992]
[1750907757638,0.1992,2502.9,2502.4,4.19530621]
[1750907758212,0.1992,2502.9,2502.4,0.1992]
[1750907758411,0.1992,2502.9,2502.2,0.9454]
[1750907758412,0.1992,2502.7,2502.2,0.1992]
[1750907759016,0.1992,2502.7,2502.3,3.99626696]
[1750907759341,0.1992,2502.7,2502.2,4.19561821]
[1750907759913,0.1992,2502.7,2502.3,3.9963217]
[1750907760141,0.1992,2502.7,2502.2,4.19564926]
[1750907760313,0.1992,2502.7,2502.2,0.1992]
[1750907760513,2.18180397,2502.7,2502.0,6.99674532]
[1750907760714,0.1992,2502.4,2502.1,3.99662522]
[1750907761724,0.1992,2502.4,2502.1,4.90124282]
[1750907761913,10.95485763,2502.7,2502.1,4.90124282]
[1750907761914,0.1992,2502.7,2502.2,4.19554833]
[1750907762116,0.95485763,2502.8,2502.4,3.99606342]
[1750907762346,0.95485763,2502.8,2502.7,3.99568466]
[1750907762552,3.25485763,2503.9,2503.0,3.99516437]
[1750907762718,3.25485763,2503.9,2502.8,3.99550917]
[1750907762719,14.52492965,2503.6,2502.6,3.99573823]
[1750907762917,10.95485763,2503.5,2502.1,0.9029]
[1750907763119,10.5305395,2503.6,2502.1,0.9029]
[1750907763120,0.95485763,2503.4,2502.1,10.9029]
[1750907763352,0.95485763,2503.3,2502.1,10.9029]
[1750907763531,0.95485763,2504.0,2503.1,3.99501119]
[1750907763854,1.07963651,2503.9,2502.8,8.3819]
[1750907764026,0.12477888,2503.8,2502.9,3.99536537]
[1750907764225,0.12477888,2503.7,2503.4,3.99446789]
[1750907764447,0.12477888,2503.6,2503.5,3.99440782]
[1750907764645,0.95485763,2504.2,2503.6,3.99421896]
[1750907764838,0.44754182,2504.1,2502.9,10.0]
[1750907765037,0.12475606,2504.0,2503.6,3.99409995]
[1750907765236,0.12475606,2503.9,2503.7,3.99398541]
[1750907765553,0.32278576,2504.1,2503.6,3.99423162]
[1750907765852,0.12475036,2504.0,2503.7,3.99403641]
[1750907766023,0.12475036,2503.9,2503.7,3.99403641]
[1750907766346,0.12474919,2504.0,2503.8,3.9938872]
[1750907766646,2.273,2504.3,2503.7,3.99403733]
[1750907766849,0.36452411,2504.2,2503.7,3.99403733]
[1750907767049,0.12474919,2504.1,2503.7,3.99403733]
[1750907767352,0.12474919,2504.1,2503.8,3.99388696]
[1750907767533,2.273,2504.5,2503.4,10.0]
[1750907767731,0.12473439,2504.4,2504.1,3.99333013]
[1750907768046,0.12473244,2504.4,2504.1,3.99333013]
[1750907768229,9.587,2504.6,2503.8,4.96390116]
[1750907768230,0.12473244,2504.5,2503.8,4.96390116]
[1750907768431,1.32320568,2504.5,2503.9,3.99376884]
[1750907768648,0.12473781,2504.4,2503.5,4.94460782]
[1750907768854,1.19847324,2504.5,2503.6,3.99423388]
[1750907769149,1.19847324,2504.5,2503.5,0.9502]
[1750907769352,11.86,2504.6,2503.5,0.9502]
[1750907769563,0.12473231,2504.5,2503.8,3.99378809]
[1750907769855,0.1247327,2504.5,2503.9,3.9937673]
[1750907770224,11.86,2504.6,2503.9,3.9937673]
[1750907770423,13.046,2504.6,2503.9,3.9937673]
[1750907770640,9.587,2504.6,2503.7,3.99408874]
[1750907770835,9.587,2504.6,2504.1,3.99332368]
[1750907771451,10.0,2504.5,2503.7,7.466]
[1750907771751,10.0,2504.5,2503.6,3.99424828]
[1750907772115,4.54299642,2504.4,2503.2,0.9557]
[1750907772320,4.54299642,2504.4,2503.5,0.1992]
[1750907772321,0.1992,2504.0,2503.5,0.1992]
[1750907773323,0.1992,2504.2,2504.0,3.9935015]
[1750907773529,9.587,2504.6,2504.0,3.9935015]
[1750907773530,0.1992,2504.5,2504.0,3.9935015]
[1750907773725,0.1992,2504.5,2504.1,0.1992]
[1750907775940,4.54301055,2504.4,2503.2,8.3831]
[1750907776135,0.1992,2504.0,2503.5,0.1992]
[1750907777123,2.4712,2504.0,2503.5,0.1992]
[1750907777322,0.1992,2503.5,2503.0,0.1992]
[1750907777759,0.1992,2503.5,2502.8,0.9348]
[1750907778054,0.1992,2503.5,2503.0,0.1992]
[1750907779633,0.1992,2503.2,2502.8,0.1992]
[1750907780362,1.44632,2503.2,2502.8,0.1992]
[1750907781632,0.1992,2503.2,2502.8,0.1992]
[1750907783870,0.1992,2503.5,2503.1,3.99492776]
[1750907784056,0.1992,2503.5,2503.2,3.99486797]
[1750907784877,2.273,2503.6,2503.4,3.99456738]
[1750907785362,2.273,2504.1,2503.5,3.99440782]
[1750907785573,0.1992,2503.9,2503.5,4.19360782]
[1750907785859,0.38197928,2504.0,2503.2,0.8908]
[1750907786062,0.1992,2503.6,2503.1,0.1992]
[1750907786261,10.25722203,2504.0,2503.5,3.99438733]
[1750907787139,10.25722203,2504.0,2503.6,3.99423647]
[1750907787474,10.0,2504.0,2503.6,3.99423647]
[1750907787766,2.273,2504.1,2503.6,3.99423647]
[1750907788134,2.273,2504.1,2503.5,3.99434502]
[1750907788371,0.12475419,2504.0,2503.5,3.99434502]
[1750907788793,0.12475419,2504.0,2503.3,4.95486463]
[1750907788995,0.12475419,2504.0,2503.3,0.9602]
[1750907788996,0.39445164,2504.0,2503.3,0.9602]
[1750907789174,0.39445164,2504.0,2503.1,3.9949302]
[1750907789379,0.12475419,2503.9,2503.2,3.99486785]
[1750907789898,0.12475419,2503.9,2503.3,3.99468062]
[1750907790406,0.12475419,2503.9,2502.8,3.99552501]
[1750907790407,0.55,2503.8,2502.8,3.99552501]
[1750907790608,0.12475419,2503.7,2502.9,0.4948425]
[1750907790771,0.12475419,2503.7,2503.0,3.99508684]
[1750907791397,0.12475419,2503.6,2503.1,3.99503193]
[1750907791585,2.272,2503.5,2502.5,10.0]
[1750907791773,0.12478477,2503.4,2502.9,3.9952621]
[1750907791973,0.12478477,2503.4,2502.7,3.99562882]
[1750907791974,0.1247909,2503.3,2502.7,3.99562882]
[1750907792375,0.55,2503.4,2502.7,3.99562882]
[1750907792579,0.12478836,2503.3,2502.8,3.99548574]
[1750907792799,0.55,2503.4,2502.8,3.99548574]
[1750907792992,0.12478427,2503.3,2502.8,3.99548574]
[1750907793188,0.12478859,2503.2,2502.7,3.99562019]
[1750907793375,0.12478859,2503.3,2502.7,3.99562019]
[1750907793701,0.12478829,2503.2,2502.8,3.99547966]
[1750907794001,1.8322,2503.4,2502.7,3.99564217]
[1750907794209,0.1247892,2503.3,2502.7,3.99564217]
[1750907794403,1.8322,2503.4,2502.7,3.99564217]
[1750907794575,0.55,2503.2,2502.4,3.9960673]
[1750907794770,17.981,2503.2,2502.2,3.99642182]
[1750907795009,0.55,2503.0,2502.1,3.99660809]
[1750907795307,12.36981076,2502.9,2502.2,3.99641873]
[1750907795618,0.12481076,2502.8,2502.2,3.99641873]
[1750907795788,1.41679184,2502.8,2502.1,3.99657908]
[1750907795991,1.29198108,2502.8,2502.1,3.99657908]
[1750907796171,0.1992,2502.6,2502.1,4.19577908]
[1750907797006,0.1992,2502.6,2502.2,3.99644398]
[1750907799309,0.1992,2502.6,2502.1,0.1992]
[1750907799607,0.1992,2502.4,2502.0,3.0]
[1750907800309,0.1992,2502.4,2502.1,3.99654504]
[1750907801278,0.1992,2502.4,2502.0,6.99673573]
[1750907801611,0.1992,2502.4,2502.1,3.99661763]
[1750907802407,0.1992,2502.4,2502.2,3.99644921]
[1750907802612,1.59721346,2502.8,2502.3,3.99632338]
[1750907802779,0.1992,2502.6,2502.3,3.99632338]
[1750907803614,0.1992,2502.6,2502.2,3.99641892]
[1750907804680,0.1992,2502.6,2502.3,3.99629712]
[1750907804896,0.1992,2502.6,2502.2,3.99643159]
[1750907805498,0.1992,2502.6,2502.1,4.19580924]
[1750907805806,0.1992,2502.6,2502.2,3.99647254]
[1750907806011,0.1992,2502.6,2502.1,4.1958354]
[1750907806315,4.5468134,2502.0,2501.1,0.1992]
[1750907806512,0.55,2501.6,2500.8,3.99859976]
[1750907806808,0.1992,2501.2,2500.8,4.19779976]
[1750907807117,2.245,2502.0,2501.5,3.9975542]
[1750907807278,0.1992,2502.1,2501.7,3.99726848]
[1750907807484,0.1992,2502.1,2501.8,4.19626042]
[1750907808095,0.1992,2502.1,2501.8,0.1992]
[1750907808413,0.55,2502.3,2501.3,3.99782382]
[1750907808604,0.55,2502.3,2501.3,0.1992]
[1750907808605,0.1992,2501.7,2501.3,0.1992]
[1750907809001,0.1992,2501.7,2501.3,4.1970721]
[1750907810894,0.1992,2501.7,2501.3,0.1992]
[1750907811100,4.80044298,2502.2,2500.9,0.9681]
[1750907811101,0.55,2501.9,2500.9,0.9681]
[1750907811317,0.55,2501.9,2501.1,4.19738331]
[1750907811318,0.1992,2501.6,2501.1,4.19738331]
[1750907811828,0.1992,2501.6,2501.1,0.1992]
[1750907812316,0.1992,2501.6,2501.1,4.19740347]
[1750907812537,0.1992,2501.6,2501.1,4.19729775]
[1750907813849,0.1992,2501.6,2501.2,3.99806337]
[1750907814026,0.1992,2501.6,2501.2,0.81956533]
[1750907814193,10.0,2502.6,2501.5,3.99760143]
[1750907814392,10.0,2502.6,2501.4,3.99776125]
[1750907814393,2.245,2502.4,2501.4,3.99776125]
[1750907814619,0.1992,2501.8,2501.3,1.1403]
[1750907814789,0.1992,2501.8,2501.3,0.1992]
[1750907814994,0.1992,2501.8,2501.3,4.19710248]
[1750907815198,0.1992,2501.8,2501.4,3.9976126]
[1750907815607,0.1992,2501.8,2501.3,4.80593813]
[1750907815807,0.1992,2501.8,2501.3,0.1992]
[1750907816327,0.1992,2501.8,2501.4,3.9977534]
[1750907816901,0.1992,2501.8,2501.3,4.19709073]
[1750907817097,0.1992,2501.8,2501.3,0.1992]
[1750907817299,0.24452,2501.8,2501.1,3.99813627]
[1750907817532,0.1992,2501.6,2501.2,3.99805092]
[1750907818406,0.1992,2501.6,2501.1,4.1974264]
[1750907818700,0.55,2501.7,2500.9,0.9411]
[1750907818901,0.1992,2501.4,2501.0,4.1975924]
[1750907819233,1.0674862,2501.6,2500.8,3.99865739]
[1750907819528,0.1992,2501.3,2500.8,4.19785739]
[1750907819729,0.1992,2501.3,2500.8,0.1992]
[1750907820621,0.1992,2501.3,2500.8,4.19781349]
[1750907820827,2.4452,2501.3,2500.8,5.01748265]
[1750907821002,0.1992,2501.3,2500.8,1.01886916]
[1750907821202,2.246,2502.0,2500.9,0.8943]
[1750907821515,0.12486118,2501.9,2500.9,4.89283005]
[1750907821712,0.12486118,2501.8,2501.0,3.99840063]
[1750907822033,0.12486118,2501.7,2501.0,3.99840063]
[1750907822231,0.12486118,2501.7,2501.0,3.99835091]
[1750907822535,0.12486959,2501.6,2500.8,3.99865712]
[1750907822736,0.12486959,2501.5,2500.8,3.99865712]
[1750907823042,0.12486959,2501.6,2501.0,3.99838054]
[1750907823335,0.12486959,2501.5,2500.8,3.99863346]
[1750907823637,0.67487646,2501.6,2500.9,3.99854633]
[1750907823932,2.22,2501.8,2500.9,0.8943]
[1750907824240,0.6748666,2501.7,2500.9,4.89279213]
[1750907824535,0.1248666,2501.6,2500.7,11.39383303]
[1750907824835,0.1248666,2501.5,2500.7,11.39383303]
[1750907825038,0.1248666,2501.4,2500.7,11.39383303]
[1750907825239,0.1248666,2501.3,2500.8,3.9987204]
[1750907825438,0.1248666,2501.6,2500.8,3.9987204]
[1750907825733,0.1248666,2501.6,2500.1,8.2981]
[1750907825734,11.08969332,2501.4,2500.1,8.2981]
[1750907825934,11.08969332,2501.4,2500.6,3.99902651]
[1750907825935,0.1248666,2501.3,2500.6,3.99902651]
[1750907826104,2.3448666,2501.2,2500.1,8.2981]
[1750907826305,2.22,2501.5,2501.0,3.99830088]
[1750907826512,0.12488417,2501.4,2501.0,3.99830088]
[1750907826730,0.12487727,2501.4,2501.0,3.99830088]
[1750907826943,2.34487727,2501.6,2501.0,3.99830088]
[1750907827236,0.12487727,2501.5,2501.0,3.99830088]
[1750907827437,10.14,2501.9,2500.8,0.9353]
[1750907827438,9.59,2501.9,2501.5,3.99750121]
[1750907827607,11.80579304,2502.7,2500.8,8.3263]
[1750907827608,0.95306979,2502.3,2501.1,10.9543]
[1750907827938,0.12483265,2502.7,2502.1,3.99653021]
[1750907828136,0.12483265,2502.6,2502.1,3.99653021]
[1750907828319,0.12483265,2502.5,2502.1,3.99653021]
[1750907828519,2.52523238,2502.8,2502.1,3.99653021]
[1750907828860,10.37735563,2502.7,2502.1,3.99653021]
[1750907829022,0.12483239,2502.6,2502.1,3.99653021]
[1750907829339,2.22,2502.7,2502.1,3.99653021]
[1750907829645,0.1248147,2502.6,2501.8,7.388]
[1750907829812,0.1248147,2502.5,2501.7,0.9543]
[1750907830013,0.1248147,2502.4,2501.9,3.99695756]
[1750907830314,0.55,2502.6,2501.7,3.99726639]
[1750907830533,0.12483244,2502.5,2501.9,3.99695296]
[1750907830843,0.12483244,2502.4,2501.5,7.386]
[1750907831046,12.22,2502.7,2501.9,3.99685068]
[1750907831209,0.1992,2502.3,2501.9,4.19605068]
[1750907831838,0.1992,2502.3,2502.0,3.996777]
[1750907832352,0.1992,2502.3,2501.9,4.19610951]
[1750907832554,0.1912,2502.3,2501.9,0.1992]
[1750907832962,0.1992,2502.2,2501.7,4.19643588]
[1750907833147,0.1992,2502.0,2501.6,3.99740053]
[1750907833534,0.1992,2502.0,2501.7,3.99727503]
[1750907833893,0.1992,2502.0,2501.5,4.19679328]
[1750907834156,0.1992,2502.0,2501.6,3.99733622]
[1750907834325,0.1992,2502.0,2501.6,3.99743749]
[1750907834661,0.1992,2502.0,2501.6,3.99744163]
[1750907834855,0.1992,2502.0,2501.7,3.99715767]
[1750907835625,0.1992,2502.0,2501.5,0.1992]
[1750907836169,10.55,2501.5,2500.4,0.9208]
[1750907836323,10.55,2501.3,2500.5,3.99909726]
[1750907836653,0.12484653,2501.2,2500.6,3.99902601]
[1750907836950,0.12484653,2501.1,2500.6,3.99902601]
[1750907837154,0.12484653,2501.2,2500.5,3.99918527]
[1750907837361,10.55,2501.3,2500.6,3.99904023]
[1750907837538,0.12489614,2501.2,2500.5,3.9991444]
[1750907837751,10.55,2501.3,2500.5,3.9991444]
[1750907837950,0.1248975,2501.2,2500.5,3.9991444]
[1750907838174,0.12489636,2501.1,2500.5,3.9991444]
[1750907838469,0.0319,2501.1,2500.4,3.99932088]
[1750907838651,0.15679636,2501.1,2500.4,3.99932088]
[1750907838969,0.0319,2501.1,2500.4,3.99932088]
[1750907839173,0.0319,2501.1,2500.2,12.2929397]
[1750907839174,0.15679636,2501.1,2500.5,3.99919287]
[1750907839477,0.0319,2501.1,2500.7,3.99874498]
[1750907840042,10.55,2501.3,2500.8,3.99867918]
[1750907840043,10.0319,2501.3,2500.8,3.99867918]
[1750907840748,10.0319,2501.3,2500.9,3.99854043]
[1750907840951,10.0319,2501.3,2500.5,0.79987045]
[1750907841165,0.12488976,2501.2,2500.7,3.99878166]
[1750907841354,10.0319,2501.3,2500.2,12.29293351]
[1750907841555,0.12488815,2501.2,2500.8,3.99871736]
[1750907841757,0.12489128,2501.2,2500.6,3.99899809]
[1750907842155,10.53969332,2500.7,2499.8,4.00017876]
[1750907842369,10.0,2500.5,2500.0,3.99998382]
[1750907842580,10.0,2500.5,2499.3,8.51384752]
[1750907842581,10.0,2500.5,2499.9,4.00010379]
[1750907843600,10.0,2500.5,2499.8,4.00025789]
[1750907843747,10.0,2500.5,2499.3,4.94412604]
[1750907843748,0.67493503,2500.4,2499.7,4.00042999]
[1750907843950,2.13519944,2500.4,2499.8,4.00021293]
[1750907845076,2.13519944,2500.4,2499.8,4.00021753]
[1750907845672,2.13519944,2500.4,2499.7,4.00047577]
[1750907845673,2.13519944,2500.4,2499.9,4.00011172]
[1750907845861,2.22,2500.5,2500.1,3.99974213]
[1750907846059,0.1992,2500.4,2500.2,3.99966414]
[1750907846384,2.2519,2500.6,2500.2,3.99966414]
[1750907846567,0.2311,2500.6,2500.2,3.99966414]
[1750907846773,0.2311,2500.6,2500.1,0.1992]
[1750907847094,0.2311,2500.6,2500.2,3.9996554]
[1750907847257,0.2311,2500.6,2500.2,0.81988249]
[1750907847459,2.2519,2500.9,2500.5,3.99920015]
[1750907847657,2.2519,2500.9,2499.8,0.9483]
[1750907847896,0.1992,2500.6,2500.1,0.1992]
[1750907848503,0.1992,2500.6,2500.1,4.19894596]
[1750907849298,0.1992,2500.6,2500.1,0.1992]
[1750907849605,0.1992,2500.6,2500.2,3.99955281]
[1750907850596,0.1992,2500.6,2500.1,4.19901591]
[1750907851094,0.1992,2500.6,2500.2,3.99965862]
[1750907851413,0.1992,2500.6,2500.1,4.19898686]
[1750907851596,0.1992,2500.6,2500.1,0.1992]
[1750907852290,0.0319,2500.5,2499.9,4.00013904]
[1750907852465,0.1992,2500.3,2499.9,4.20013904]
[1750907852862,0.1992,2500.3,2499.9,0.2]
[1750907853267,0.0319,2500.5,2499.7,0.2]
[1750907853268,0.1992,2500.1,2499.7,0.2]
[1750907853964,0.0319,2500.0,2499.4,4.00083955]
[1750907854187,0.2,2499.9,2499.5,0.2]
[1750907855701,0.0319,2500.0,2499.0,8.2639]
[1750907856004,0.2,2499.8,2499.3,4.20101031]
[1750907856506,2.4259,2500.0,2499.5,4.20070386]
[1750907856705,2.4259,2500.0,2499.5,0.2]
[1750907856872,0.2,2499.9,2499.4,0.2]
[1750907857291,0.0319,2499.8,2499.4,0.2]
[1750907857572,0.2,2499.6,2499.1,0.2]
[1750907858199,0.2,2499.6,2499.1,4.20142683]
[1750907858404,0.2,2499.6,2499.1,0.2]
[1750907858770,0.2,2499.6,2499.1,4.20143875]
[1750907859004,0.2,2499.6,2499.2,4.00122375]
[1750907859507,0.2,2499.6,2499.2,4.0012804]
[1750907859709,0.2,2499.6,2499.1,0.2]
[1750907859922,0.0319,2500.1,2499.7,4.00035501]
[1750907860215,0.0319,2500.1,2499.5,0.2]
[1750907860216,0.2,2500.0,2499.5,0.2]
[1750907860407,0.0319,2500.1,2499.9,4.00016]
[1750907860777,0.1992,2500.2,2499.8,0.2]
[1750907860982,0.2311,2500.4,2500.1,3.99984]
[1750907861835,0.2311,2500.4,2499.9,4.20016]
[1750907861836,0.2311,2500.4,2499.9,4.20012586]
[1750907861979,11.47371,2500.4,2499.9,4.20012586]
[1750907862186,11.47371,2500.4,2500.0,3.99996176]
[1750907862489,11.47371,2500.4,2499.9,4.20011884]
[1750907862990,11.47371,2500.4,2500.0,3.99999167]
[1750907863220,0.2311,2500.4,2500.2,3.99959039]
[1750907863389,0.0319,2500.4,2500.1,4.19897993]
[1750907863729,0.2311,2500.4,2500.1,3.99977993]
[1750907864091,9.6259,2500.7,2500.3,3.99952005]
[1750907864285,0.1992,2500.6,2500.3,3.99952005]
[1750907864617,0.1992,2500.6,2500.2,3.99962275]